[Event "*** Titled Tuesday Blitz"]
[Site "Chess.com"]
[Date "2018.04.03"]
[Round "4"]
[White "Patzel09"]
[Black "mishanick"]
[Result "1-0"]
[WhiteElo "2545"]
[BlackElo "2830"]
[TimeControl "180+2"]
[EndTime "13:53:27 PDT"]
[Termination "Patzel09 won by checkmate"]

1. e4 {[%clk 0:03:01.9]} 1... c5 {[%clk 0:02:59]} 2. c3 {[%clk 0:03:02.2]} 2...
d5 {[%clk 0:02:59.6]} 3. exd5 {[%clk 0:03:03.1]} 3... Qxd5 {[%clk 0:03:01.5]} 4.
Nf3 {[%clk 0:03:03.6]} 4... Nf6 {[%clk 0:03:02.6]} 5. Na3 {[%clk 0:03:04.3]}
5... Bg4 {[%clk 0:03:00.3]} 6. Be2 {[%clk 0:03:04.5]} 6... Nc6 {[%clk 0:03:00]}
7. d3 {[%clk 0:03:04.2]} 7... e6 {[%clk 0:02:59.4]} 8. Nc4 {[%clk 0:03:05]} 8...
Bh5 {[%clk 0:02:53.9]} 9. Qb3 {[%clk 0:03:03.8]} 9... b6 {[%clk 0:02:45.1]} 10.
Bf4 {[%clk 0:03:02.2]} 10... Be7 {[%clk 0:02:44.7]} 11. O-O {[%clk 0:03:02.3]}
11... O-O {[%clk 0:02:44.4]} 12. h3 {[%clk 0:02:56.3]} 12... Rad8 {[%clk
0:02:38.5]} 13. Rad1 {[%clk 0:02:53.3]} 13... h6 {[%clk 0:02:32.7]} 14. Rfe1
{[%clk 0:02:51]} 14... Qd7 {[%clk 0:02:12.6]} 15. g4 {[%clk 0:02:46.4]} 15...
Bg6 {[%clk 0:02:04.5]} 16. Nfe5 {[%clk 0:02:47.1]} 16... Qc8 {[%clk 0:01:55]}
17. Bf3 {[%clk 0:02:44.2]} 17... Nd5 {[%clk 0:01:52.3]} 18. Bg3 {[%clk
0:02:34.5]} 18... Bh7 {[%clk 0:01:47]} 19. Nxc6 {[%clk 0:02:12.6]} 19... Qxc6
{[%clk 0:01:48.9]} 20. Ne5 {[%clk 0:02:13.4]} 20... Qc8 {[%clk 0:01:47.2]} 21.
Qa4 {[%clk 0:02:10.9]} 21... Bf6 {[%clk 0:01:15.8]} 22. Qxa7 {[%clk 0:01:53.7]}
22... b5 {[%clk 0:01:12]} 23. c4 {[%clk 0:01:41.7]} 23... bxc4 {[%clk
0:01:12.1]} 24. dxc4 {[%clk 0:01:41.2]} 24... Nb4 {[%clk 0:01:13]} 25. Nd7
{[%clk 0:01:26.2]} 25... Nd3 {[%clk 0:01:00.3]} 26. Rxd3 {[%clk 0:01:18.5]}
26... Bxd3 {[%clk 0:00:59.4]} 27. Nb6 {[%clk 0:01:18.9]} 27... Bxb2 {[%clk
0:00:45]} 28. Nxc8 {[%clk 0:01:15.4]} 28... Rxc8 {[%clk 0:00:46.9]} 29. Be2
{[%clk 0:01:06.4]} 29... Be4 {[%clk 0:00:46.7]} 30. Bf1 {[%clk 0:01:02.9]} 30...
Bg6 {[%clk 0:00:46.4]} 31. a4 {[%clk 0:00:59.8]} 31... Ra8 {[%clk 0:00:46.6]}
32. Qxc5 {[%clk 0:00:58.4]} 32... Rxa4 {[%clk 0:00:46.4]} 33. Qb5 {[%clk
0:00:59.1]} 33... Ra2 {[%clk 0:00:45.8]} 34. Qb3 {[%clk 0:00:58.5]} 34... Rfa8
{[%clk 0:00:46.1]} 35. Bg2 {[%clk 0:00:58.2]} 35... R8a3 {[%clk 0:00:45.9]} 36.
Qb8+ {[%clk 0:00:56]} 36... Kh7 {[%clk 0:00:47]} 37. c5 {[%clk 0:00:56.4]} 37...
Bd4 {[%clk 0:00:46.8]} 38. c6 {[%clk 0:00:57.8]} 38... Rc2 {[%clk 0:00:43]} 39.
c7 {[%clk 0:00:56.5]} 39... Rxg3 {[%clk 0:00:43]} 40. c8=Q {[%clk 0:00:55.4]}
40... Bxf2+ {[%clk 0:00:42.4]} 41. Kh2 {[%clk 0:00:56.8]} 41... Rxc8 {[%clk
0:00:42.3]} 42. Qxc8 {[%clk 0:00:57.5]} 42... Bxe1 {[%clk 0:00:43.4]} 43. Qc1
{[%clk 0:00:56.2]} 43... Bf2 {[%clk 0:00:36.2]} 44. Qf1 {[%clk 0:00:54.8]} 44...
Rxg2+ {[%clk 0:00:33]} 45. Kxg2 {[%clk 0:00:56.7]} 45... Bh4 {[%clk 0:00:33.3]}
46. Qe2 {[%clk 0:00:56.7]} 46... Bg5 {[%clk 0:00:32.5]} 47. Kg3 {[%clk
0:00:55.7]} 47... Be7 {[%clk 0:00:31.7]} 48. h4 {[%clk 0:00:56.6]} 48... h5
{[%clk 0:00:32.3]} 49. gxh5 {[%clk 0:00:55.2]} 49... Bf5 {[%clk 0:00:33.5]} 50.
Qd1 {[%clk 0:00:49.9]} 50... Bf6 {[%clk 0:00:33.9]} 51. Qe2 {[%clk 0:00:44.6]}
51... Bd4 {[%clk 0:00:34]} 52. Qc4 {[%clk 0:00:42.7]} 52... Be5+ {[%clk
0:00:34.6]} 53. Kf3 {[%clk 0:00:43.8]} 53... Bd6 {[%clk 0:00:31.4]} 54. Qd4
{[%clk 0:00:43.1]} 54... Bh2 {[%clk 0:00:28.5]} 55. Qa7 {[%clk 0:00:41.7]} 55...
f6 {[%clk 0:00:28.7]} 56. Qe7 {[%clk 0:00:38.9]} 56... Be5 {[%clk 0:00:28.5]}
57. Qf7 {[%clk 0:00:37]} 57... Bb2 {[%clk 0:00:26.3]} 58. Qb7 {[%clk 0:00:35.9]}
58... Bc1 {[%clk 0:00:26.8]} 59. Qd7 {[%clk 0:00:33.4]} 59... Bh6 {[%clk
0:00:26.9]} 60. Qc8 {[%clk 0:00:31.3]} 60... Bd2 {[%clk 0:00:27.4]} 61. Qd7
{[%clk 0:00:32.5]} 61... Bc3 {[%clk 0:00:26.6]} 62. Qd1 {[%clk 0:00:30.3]} 62...
e5 {[%clk 0:00:25.1]} 63. h6 {[%clk 0:00:23.8]} 63... gxh6 {[%clk 0:00:13]} 64.
Qb3 {[%clk 0:00:23.3]} 64... e4+ {[%clk 0:00:07.9]} 65. Kf4 {[%clk 0:00:23.6]}
65... Kg6 {[%clk 0:00:05.6]} 66. h5+ {[%clk 0:00:22.6]} 66... Kxh5 {[%clk
0:00:06.6]} 67. Kxf5 {[%clk 0:00:24.1]} 67... Be5 {[%clk 0:00:07]} 68. Qh3#
{[%clk 0:00:24.6]} 1-0

[Event "*** Titled Tuesday Blitz"]
[Site "Chess.com"]
[Date "2018.04.03"]
[Round "4"]
[White "kasparik_garik"]
[Black "pultineviciuspaulius"]
[Result "1/2-1/2"]
[WhiteElo "2517"]
[BlackElo "2604"]
[TimeControl "180+2"]
[EndTime "13:53:28 PDT"]
[Termination "Game drawn by agreement"]

1. Nf3 {[%clk 0:03:00]} 1... Nf6 {[%clk 0:02:59.3]} 2. g3 {[%clk 0:03:01]} 2...
g6 {[%clk 0:03:00]} 3. Bg2 {[%clk 0:03:02.1]} 3... Bg7 {[%clk 0:03:01.8]} 4. O-O
{[%clk 0:03:03.5]} 4... O-O {[%clk 0:03:03.6]} 5. d3 {[%clk 0:03:02.9]} 5... d6
{[%clk 0:03:03.3]} 6. e4 {[%clk 0:03:03]} 6... c5 {[%clk 0:03:04.5]} 7. Nbd2
{[%clk 0:03:02.8]} 7... Nc6 {[%clk 0:03:05.5]} 8. Re1 {[%clk 0:03:04]} 8... Rb8
{[%clk 0:03:06.4]} 9. a4 {[%clk 0:03:03.3]} 9... a6 {[%clk 0:03:05.4]} 10. e5
{[%clk 0:02:47.1]} 10... dxe5 {[%clk 0:02:17.9]} 11. Nxe5 {[%clk 0:02:43.7]}
11... Nxe5 {[%clk 0:02:15.1]} 12. Rxe5 {[%clk 0:02:44.1]} 12... b6 {[%clk
0:02:17]} 13. Re1 {[%clk 0:02:40.8]} 13... Bb7 {[%clk 0:02:12.7]} 14. Bxb7
{[%clk 0:02:40.1]} 14... Rxb7 {[%clk 0:02:14.6]} 15. Qf3 {[%clk 0:02:40.7]}
15... Qd5 {[%clk 0:02:09.5]} 16. Qxd5 {[%clk 0:02:25.6]} 16... Nxd5 {[%clk
0:02:11.4]} 17. Nc4 {[%clk 0:02:21.7]} 17... Nb4 {[%clk 0:02:09.2]} 18. Re2
{[%clk 0:02:22.7]} 18... Rd8 {[%clk 0:02:05.8]} 19. Kg2 {[%clk 0:02:21.8]} 19...
h6 {[%clk 0:02:02.2]} 20. h4 {[%clk 0:02:22.3]} 20... e6 {[%clk 0:02:03.1]} 21.
Kf1 {[%clk 0:02:13.7]} 21... b5 {[%clk 0:02:04]} 22. axb5 {[%clk 0:02:13.2]}
22... axb5 {[%clk 0:02:05.9]} 23. Ne3 {[%clk 0:02:12]} 23... Nc6 {[%clk
0:01:54.7]} 24. Re1 {[%clk 0:02:05.2]} 24... Nd4 {[%clk 0:01:53.4]} 25. Kg2
{[%clk 0:02:00.6]} 25... Rbd7 {[%clk 0:01:48.5]} 26. Bd2 {[%clk 0:01:57.4]}
26... c4 {[%clk 0:01:45.6]} 27. Bc3 {[%clk 0:01:47.1]} 27... cxd3 {[%clk
0:01:44.6]} 28. cxd3 {[%clk 0:01:48.2]} 28... Nb3 {[%clk 0:01:41]} 29. Ra3
{[%clk 0:01:49.1]} 29... Nc5 {[%clk 0:01:37.8]} 30. Bxg7 {[%clk 0:01:42.2]}
30... Kxg7 {[%clk 0:01:39.6]} 31. Ra5 {[%clk 0:01:41.4]} 31... Nxd3 {[%clk
0:01:38.1]} 32. Rd1 {[%clk 0:01:42.4]} 32... b4 {[%clk 0:01:34.3]} 33. Rb5
{[%clk 0:01:40.3]} 33... Rd4 {[%clk 0:01:31.3]} 34. b3 {[%clk 0:01:38.5]} 34...
e5 {[%clk 0:01:18.7]} 35. Kg1 {[%clk 0:01:38.8]} 35... e4 {[%clk 0:01:17.9]} 36.
Nc4 {[%clk 0:01:36.2]} 36... f5 {[%clk 0:01:06.2]} 37. Rb6 {[%clk 0:01:28.2]}
37... g5 {[%clk 0:01:03.3]} 38. h5 {[%clk 0:01:27.7]} 38... f4 {[%clk
0:01:03.5]} 39. gxf4 {[%clk 0:01:26.4]} 39... gxf4 {[%clk 0:01:05.3]} 40. Ra1
{[%clk 0:01:19.3]} 40... R4d5 {[%clk 0:00:56.2]} 41. Ra7+ {[%clk 0:01:14.7]}
41... R8d7 {[%clk 0:00:57.2]} 42. Rg6+ {[%clk 0:01:10.5]} 42... Kh7 {[%clk
0:00:55.7]} 43. Rxd7+ {[%clk 0:01:11]} 43... Rxd7 {[%clk 0:00:55.8]} 44. Re6
{[%clk 0:01:12]} 44... Nc5 {[%clk 0:00:48.8]} 45. Re5 {[%clk 0:01:12.3]} 45...
Rg7+ {[%clk 0:00:48.7]} 46. Kh2 {[%clk 0:01:12.2]} 46... Rg5 {[%clk 0:00:50.6]}
47. Re7+ {[%clk 0:01:12.3]} 47... Kg8 {[%clk 0:00:49.5]} 48. Nd6 {[%clk
0:01:12.5]} 48... Rxh5+ {[%clk 0:00:50.1]} 49. Kg1 {[%clk 0:01:13.9]} 49... Rg5+
{[%clk 0:00:46.6]} 50. Kh2 {[%clk 0:01:14.8]} 50... f3 {[%clk 0:00:45.5]} 51.
Nxe4 {[%clk 0:01:13.6]} 51... Nxe4 {[%clk 0:00:45.8]} 52. Rxe4 {[%clk
0:01:14.2]} 52... Rg2+ {[%clk 0:00:34.9]} 53. Kh3 {[%clk 0:01:13.7]} 53... Rxf2
{[%clk 0:00:33]} 54. Kg3 {[%clk 0:01:11.3]} 54... Rb2 {[%clk 0:00:30]} 55. Rxb4
{[%clk 0:01:07]} 55... f2 {[%clk 0:00:29.4]} 56. Kg2 {[%clk 0:01:07.7]} 56... h5
{[%clk 0:00:30.2]} 57. Rf4 {[%clk 0:01:06.8]} 57... Kg7 {[%clk 0:00:29.8]} 58.
Rxf2 {[%clk 0:01:07]} 58... Rxb3 {[%clk 0:00:31.3]} 59. Rf3 {[%clk 0:01:07.4]}
59... Rb2+ {[%clk 0:00:32.5]} 60. Rf2 {[%clk 0:01:08.3]} 60... Rb4 {[%clk
0:00:33.6]} 61. Kh2 {[%clk 0:01:08.9]} 61... Kg6 {[%clk 0:00:35]} 62. Ra2 {[%clk
0:01:09.8]} 62... Kg5 {[%clk 0:00:35.5]} 63. Rc2 {[%clk 0:01:10.7]} 63... Kg4
{[%clk 0:00:36.3]} 64. Rg2+ {[%clk 0:01:11.2]} 64... Kf3 {[%clk 0:00:34.6]} 65.
Rc2 {[%clk 0:01:11.8]} 65... Rh4+ {[%clk 0:00:28]} 66. Kg1 {[%clk 0:01:12.1]}
66... Re4 {[%clk 0:00:29.4]} 67. Kh2 {[%clk 0:01:10.7]} 67... Ke3 {[%clk
0:00:28.7]} 68. Ra2 {[%clk 0:01:10.4]} 68... Kf3 {[%clk 0:00:29.5]} 69. Ra3+
{[%clk 0:01:11.1]} 69... Kg4 {[%clk 0:00:29.7]} 70. Ra2 {[%clk 0:01:12]} 70...
h4 {[%clk 0:00:28.9]} 71. Rb2 {[%clk 0:01:12.3]} 71... Re3 {[%clk 0:00:29.9]}
72. Rb4+ {[%clk 0:01:12.8]} 72... Kg5 {[%clk 0:00:30.7]} 73. Rb5+ {[%clk
0:01:13.8]} 73... Kg4 {[%clk 0:00:32]} 74. Rb4+ {[%clk 0:01:14.5]} 74... Kg5
{[%clk 0:00:33.3]} 75. Rb5+ {[%clk 0:01:15.3]} 75... Kg4 {[%clk 0:00:35.2]} 76.
Rb4+ {[%clk 0:01:16.1]} 76... Kf3 {[%clk 0:00:36.9]} 1/2-1/2

[Event "*** Titled Tuesday Blitz"]
[Site "Chess.com"]
[Date "2018.04.03"]
[Round "4"]
[White "TigranLPetrosyan"]
[Black "DrHolmes13"]
[Result "0-1"]
[WhiteElo "2661"]
[BlackElo "2476"]
[TimeControl "180+2"]
[EndTime "13:53:36 PDT"]
[Termination "DrHolmes13 won by resignation"]

1. Nf3 {[%clk 0:03:01.9]} 1... Nf6 {[%clk 0:03:00.4]} 2. g3 {[%clk 0:03:03.8]}
2... g6 {[%clk 0:02:59.9]} 3. Bg2 {[%clk 0:03:05.1]} 3... Bg7 {[%clk 0:03:01.5]}
4. O-O {[%clk 0:03:07]} 4... O-O {[%clk 0:03:02.7]} 5. d4 {[%clk 0:03:08.9]}
5... d5 {[%clk 0:03:03.9]} 6. c4 {[%clk 0:03:10]} 6... c6 {[%clk 0:03:04.9]} 7.
cxd5 {[%clk 0:03:10.8]} 7... cxd5 {[%clk 0:03:06.1]} 8. Ne5 {[%clk 0:03:12.7]}
8... Ng4 {[%clk 0:03:04]} 9. Nf3 {[%clk 0:03:11.8]} 9... Nf6 {[%clk 0:03:02.7]}
10. Nc3 {[%clk 0:03:12.2]} 10... Ne4 {[%clk 0:03:02.9]} 11. Ne5 {[%clk
0:03:13.1]} 11... Nxc3 {[%clk 0:03:00.8]} 12. bxc3 {[%clk 0:03:15]} 12... Nc6
{[%clk 0:03:02.3]} 13. Nxc6 {[%clk 0:03:16.2]} 13... bxc6 {[%clk 0:03:03.1]} 14.
Qa4 {[%clk 0:03:17]} 14... Bd7 {[%clk 0:03:00.2]} 15. Ba3 {[%clk 0:02:42]} 15...
Re8 {[%clk 0:02:54.5]} 16. Bc5 {[%clk 0:02:41.9]} 16... Qc8 {[%clk 0:02:47.8]}
17. e3 {[%clk 0:02:37.5]} 17... e5 {[%clk 0:02:45.6]} 18. Rab1 {[%clk
0:02:38.4]} 18... h5 {[%clk 0:02:40.5]} 19. h4 {[%clk 0:02:26.6]} 19... Bf5
{[%clk 0:02:36.1]} 20. Rb2 {[%clk 0:02:22.8]} 20... Bd3 {[%clk 0:02:30.7]} 21.
Rd1 {[%clk 0:02:23.2]} 21... Bc4 {[%clk 0:02:29.1]} 22. Rb4 {[%clk 0:02:21.1]}
22... Bb5 {[%clk 0:02:26.3]} 23. Qb3 {[%clk 0:02:02.8]} 23... Bc4 {[%clk
0:02:25.3]} 24. Rxc4 {[%clk 0:01:56.8]} 24... dxc4 {[%clk 0:02:26]} 25. Qa4
{[%clk 0:01:47.9]} 25... e4 {[%clk 0:02:23.1]} 26. Bf1 {[%clk 0:01:41.2]} 26...
Rb8 {[%clk 0:02:19.6]} 27. Bxc4 {[%clk 0:01:41.7]} 27... Bf8 {[%clk 0:02:15.7]}
28. Bxf8 {[%clk 0:01:32.4]} 28... Rxf8 {[%clk 0:02:14.6]} 29. Qxa7 {[%clk
0:01:33.2]} 29... Rb7 {[%clk 0:02:12.5]} 30. Qc5 {[%clk 0:01:33.7]} 30... Qf5
{[%clk 0:02:09.8]} 31. Qxf5 {[%clk 0:01:14.2]} 31... gxf5 {[%clk 0:02:10.3]} 32.
Bb3 {[%clk 0:01:14.2]} 32... Rd8 {[%clk 0:02:07.3]} 33. f3 {[%clk 0:01:06.9]}
33... exf3 {[%clk 0:02:02.3]} 34. Rf1 {[%clk 0:01:04.2]} 34... Kg7 {[%clk
0:02:02]} 35. Rxf3 {[%clk 0:01:05.2]} 35... Kg6 {[%clk 0:01:59.7]} 36. Kf2
{[%clk 0:01:06.1]} 36... Rdb8 {[%clk 0:01:55.8]} 37. Ke2 {[%clk 0:01:04.8]}
37... c5 {[%clk 0:01:51.5]} 38. Kd3 {[%clk 0:00:58]} 38... Rc7 {[%clk
0:01:51.5]} 39. d5 {[%clk 0:00:41.9]} 39... Re8 {[%clk 0:01:44]} 40. c4 {[%clk
0:00:29.2]} 40... Rb7 {[%clk 0:01:39.9]} 41. Kc3 {[%clk 0:00:25.8]} 41... Ra8
{[%clk 0:01:35.9]} 42. Rf4 {[%clk 0:00:17]} 42... Re8 {[%clk 0:01:33.7]} 43. Kd2
{[%clk 0:00:17.8]} 43... Re5 {[%clk 0:01:29.3]} 44. Rf3 {[%clk 0:00:16.4]} 44...
Re8 {[%clk 0:01:24.8]} 45. Kc3 {[%clk 0:00:17.2]} 45... Re5 {[%clk 0:01:22.8]}
46. Bc2 {[%clk 0:00:15.5]} 46... Ra7 {[%clk 0:01:21.5]} 47. a4 {[%clk
0:00:15.7]} 47... Rb7 {[%clk 0:01:19.2]} 48. Bb3 {[%clk 0:00:09.3]} 48... Kf6
{[%clk 0:01:15.3]} 49. Bc2 {[%clk 0:00:09.5]} 49... Kg6 {[%clk 0:01:15.1]} 50.
Bb3 {[%clk 0:00:10.7]} 50... Kf6 {[%clk 0:01:15.9]} 51. Bd1 {[%clk 0:00:09.8]}
51... Kg6 {[%clk 0:01:13.1]} 52. Bc2 {[%clk 0:00:10.8]} 52... Kf6 {[%clk
0:01:13.7]} 53. e4 {[%clk 0:00:11.6]} 53... Ke7 {[%clk 0:01:07.3]} 54. Rxf5
{[%clk 0:00:10.4]} 54... Rxf5 {[%clk 0:01:07.5]} 55. exf5 {[%clk 0:00:12.3]}
55... Rb8 {[%clk 0:01:04.7]} 56. a5 {[%clk 0:00:09.1]} 56... Ra8 {[%clk
0:01:01.3]} 57. Bd1 {[%clk 0:00:10.1]} 57... Rxa5 {[%clk 0:00:59.4]} 58. Kd3
{[%clk 0:00:10.4]} 58... Ra3+ {[%clk 0:00:57.8]} 59. Ke4 {[%clk 0:00:11.7]}
59... Rxg3 {[%clk 0:00:57]} 60. Bxh5 {[%clk 0:00:09.1]} 60... Rh3 {[%clk
0:00:55.9]} 61. d6+ {[%clk 0:00:09.7]} 61... Kxd6 {[%clk 0:00:54.2]} 62. Bxf7
{[%clk 0:00:10.9]} 62... Rxh4+ {[%clk 0:00:53.6]} 63. Kf3 {[%clk 0:00:12.2]}
63... Ke5 {[%clk 0:00:53]} 64. Be6 {[%clk 0:00:13.7]} 64... Rh3+ {[%clk
0:00:52.5]} 65. Kg4 {[%clk 0:00:15]} 65... Rh1 {[%clk 0:00:50.5]} 66. Kg5 {[%clk
0:00:15.1]} 66... Rg1+ {[%clk 0:00:51.3]} 67. Kh4 {[%clk 0:00:16.5]} 67... Kf4
{[%clk 0:00:44]} 68. Kh5 {[%clk 0:00:15.9]} 68... Rg5+ {[%clk 0:00:39.1]} 69.
Kh4 {[%clk 0:00:17.2]} 69... Rxf5 {[%clk 0:00:39]} 70. Bxf5 {[%clk 0:00:18.5]}
70... Kxf5 {[%clk 0:00:40.2]} 71. Kg3 {[%clk 0:00:20.4]} 71... Ke4 {[%clk
0:00:41.5]} 72. Kf2 {[%clk 0:00:22.3]} 72... Kd3 {[%clk 0:00:42.5]} 73. Ke1
{[%clk 0:00:23.1]} 73... Kxc4 {[%clk 0:00:42.3]} 74. Kd2 {[%clk 0:00:19.9]}
74... Kb3 {[%clk 0:00:43.2]} 75. Kc1 {[%clk 0:00:21.4]} 75... Kc3 {[%clk
0:00:44.3]} 76. Kb1 {[%clk 0:00:21.3]} 76... Kd2 {[%clk 0:00:45.2]} 0-1

[Event "*** Titled Tuesday Blitz"]
[Site "Chess.com"]
[Date "2018.04.03"]
[Round "4"]
[White "pKiLz5Rn9b"]
[Black "lachesisQ"]
[Result "0-1"]
[WhiteElo "2642"]
[BlackElo "2910"]
[TimeControl "180+2"]
[EndTime "13:53:40 PDT"]
[Termination "lachesisQ won by resignation"]

1. c4 {[%clk 0:03:01.9]} 1... e5 {[%clk 0:03:00.3]} 2. g3 {[%clk 0:03:01.7]}
2... Nc6 {[%clk 0:03:00.7]} 3. Bg2 {[%clk 0:03:00.5]} 3... h5 {[%clk 0:03:01.6]}
4. h4 {[%clk 0:02:43.4]} 4... Bc5 {[%clk 0:02:58.9]} 5. Nf3 {[%clk 0:02:42.1]}
5... d6 {[%clk 0:02:59.2]} 6. Nc3 {[%clk 0:02:36.9]} 6... Bg4 {[%clk 0:02:59.7]}
7. a3 {[%clk 0:02:32.1]} 7... a5 {[%clk 0:03:00.2]} 8. e3 {[%clk 0:02:10.2]}
8... Nf6 {[%clk 0:02:55.5]} 9. Qb3 {[%clk 0:02:07.3]} 9... Rb8 {[%clk
0:02:51.8]} 10. Ng5 {[%clk 0:02:07.9]} 10... O-O {[%clk 0:02:44.4]} 11. O-O
{[%clk 0:02:06.6]} 11... Bf5 {[%clk 0:02:44.1]} 12. Nd5 {[%clk 0:01:56.1]} 12...
Nxd5 {[%clk 0:02:39.9]} 13. cxd5 {[%clk 0:01:53.1]} 13... Ne7 {[%clk 0:02:41]}
14. Kh2 {[%clk 0:01:48.9]} 14... c6 {[%clk 0:02:39.8]} 15. f4 {[%clk 0:01:25.4]}
15... cxd5 {[%clk 0:02:24.3]} 16. fxe5 {[%clk 0:01:26.2]} 16... dxe5 {[%clk
0:02:25.1]} 17. Bxd5 {[%clk 0:01:26.3]} 17... Qxd5 {[%clk 0:01:57.2]} 18. Qxd5
{[%clk 0:01:24.1]} 18... Nxd5 {[%clk 0:01:59.1]} 19. Rxf5 {[%clk 0:01:25.4]}
19... f6 {[%clk 0:02:00.4]} 20. Ne4 {[%clk 0:01:00.7]} 20... Bb6 {[%clk
0:01:58.5]} 21. b4 {[%clk 0:00:56.9]} 21... axb4 {[%clk 0:01:57.2]} 22. axb4
{[%clk 0:00:58.8]} 22... Rfc8 {[%clk 0:01:52.7]} 23. Rf1 {[%clk 0:00:29.6]}
23... Rc2 {[%clk 0:01:51]} 24. Kh3 {[%clk 0:00:31.1]} 24... Rd8 {[%clk
0:01:40.5]} 25. Rb1 {[%clk 0:00:28.4]} 25... Rc4 {[%clk 0:01:38.9]} 26. Nc5
{[%clk 0:00:22.9]} 26... Rxb4 {[%clk 0:01:30.6]} 27. Rxb4 {[%clk 0:00:10.9]}
27... Nxb4 {[%clk 0:01:32.5]} 28. Nxb7 {[%clk 0:00:08.7]} 28... Rd7 {[%clk
0:01:33.2]} 29. Ba3 {[%clk 0:00:10]} 29... Nc2 {[%clk 0:01:33.8]} 30. Nc5 {[%clk
0:00:11]} 30... Rxd2 {[%clk 0:01:30]} 31. Rb1 {[%clk 0:00:09.8]} 31... Bxc5
{[%clk 0:01:22.6]} 32. Bxc5 {[%clk 0:00:10.2]} 32... Rd3 {[%clk 0:01:21]} 33.
Rb8+ {[%clk 0:00:06]} 33... Kh7 {[%clk 0:01:21.6]} 34. e4 {[%clk 0:00:05.1]}
34... Ne1 {[%clk 0:01:05.6]} 35. Bf8 {[%clk 0:00:04.7]} 35... Rd7 {[%clk
0:01:02.3]} 36. Rb1 {[%clk 0:00:05.5]} 36... Nf3 {[%clk 0:01:01.9]} 37. Kg2
{[%clk 0:00:04.9]} 37... Nd2 {[%clk 0:00:57.3]} 38. Rb4 {[%clk 0:00:05.8]} 38...
Rd8 {[%clk 0:00:52]} 39. Bc5 {[%clk 0:00:05.6]} 39... Rc8 {[%clk 0:00:53.1]} 40.
Be7 {[%clk 0:00:05.7]} 40... Rc2 {[%clk 0:00:52.3]} 41. Kg1 {[%clk 0:00:04.4]}
41... Nf3+ {[%clk 0:00:49.1]} 42. Kf1 {[%clk 0:00:05.4]} 42... Nh2+ {[%clk
0:00:45]} 43. Ke1 {[%clk 0:00:06.3]} 43... Rg2 {[%clk 0:00:43.5]} 44. Rb7 {[%clk
0:00:06.2]} 44... Kh6 {[%clk 0:00:37.7]} 45. Rb3 {[%clk 0:00:04.7]} 45... Ng4
{[%clk 0:00:36.1]} 46. Bc5 {[%clk 0:00:05.6]} 46... Kg6 {[%clk 0:00:34.9]} 47.
Bf8 {[%clk 0:00:05.3]} 47... Kf7 {[%clk 0:00:35.5]} 48. Bc5 {[%clk 0:00:06.5]}
48... Rc2 {[%clk 0:00:36.4]} 49. Rb7+ {[%clk 0:00:07]} 49... Kg8 {[%clk
0:00:37.6]} 50. Rb8+ {[%clk 0:00:07.6]} 50... Kh7 {[%clk 0:00:38]} 51. Bf8
{[%clk 0:00:08.3]} 51... Rc4 {[%clk 0:00:26.1]} 52. Rb7 {[%clk 0:00:08.4]} 52...
Rxe4+ {[%clk 0:00:27.2]} 53. Kd2 {[%clk 0:00:05.8]} 53... Rd4+ {[%clk
0:00:28.4]} 54. Ke2 {[%clk 0:00:05.9]} 54... Rd8 {[%clk 0:00:29.4]} 55. Bxg7
{[%clk 0:00:03.5]} 55... Kg6 {[%clk 0:00:30.1]} 56. Bxf6 {[%clk 0:00:02.9]}
56... Nxf6 {[%clk 0:00:29.8]} 57. Ke3 {[%clk 0:00:04]} 57... Kf5 {[%clk
0:00:30.2]} 58. Rg7 {[%clk 0:00:04.3]} 58... Ng4+ {[%clk 0:00:30]} 59. Ke2
{[%clk 0:00:05.9]} 59... Ke4 {[%clk 0:00:30.1]} 60. Rg5 {[%clk 0:00:06.6]} 60...
Nf6 {[%clk 0:00:29.9]} 61. Rg6 {[%clk 0:00:07.8]} 61... Rd6 {[%clk 0:00:30]} 62.
Rg5 {[%clk 0:00:07.3]} 62... Ra6 {[%clk 0:00:30.3]} 63. Rg6 {[%clk 0:00:06.7]}
63... Ra2+ {[%clk 0:00:31]} 64. Ke1 {[%clk 0:00:08.3]} 64... Ke3 {[%clk
0:00:32]} 65. Kf1 {[%clk 0:00:06]} 65... Ne4 {[%clk 0:00:32.6]} 66. Kg1 {[%clk
0:00:03.1]} 66... Kf3 {[%clk 0:00:33.4]} 67. Rg8 {[%clk 0:00:02.9]} 67... Rg2+
{[%clk 0:00:31.1]} 68. Kf1 {[%clk 0:00:02.4]} 68... Nxg3+ {[%clk 0:00:32.2]} 69.
Ke1 {[%clk 0:00:03.9]} 69... Rg1+ {[%clk 0:00:33.2]} 70. Kd2 {[%clk 0:00:04.5]}
70... Ne4+ {[%clk 0:00:35.1]} 0-1